fUST/lending_fUST_20250323
["ID","MTS","AMOUNT","RATE_DAILY","PERIOD"]
[356571543,1742695774199,-554.89,0.00021917,2]
[356571544,1742695774222,-482.41903336,0.00022191,2]
[356571545,1742695774243,-500.0,0.00022191,2]
[356571546,1742695774269,-5331.86,0.00022191,2]
[356571547,1742695774291,-9199.67805742,0.00022191,2]
[356571578,1742695832306,-2365.7066,0.00021915,2]
[356571579,1742695832316,-500.0,0.00021916,2]
[356571580,1742695832327,-300.0,0.00021916,2]
[356571581,1742695832336,-3650.43,0.00021917,2]
[356571582,1742695832345,-957.88,0.00021917,2]
[356571583,1742695832354,-9026.18,0.00021917,2]
[356571584,1742695832364,-500.0,0.00021917,2]
[356571585,1742695832375,-500.0,0.00021917,2]
[356571586,1742695832385,-650.01,0.00021917,2]
[356571587,1742695832394,-500.0,0.00021917,2]
[356571588,1742695832404,-980.77,0.00021917,2]
[356571589,1742695832413,-500.0,0.00021917,2]
[356571590,1742695832422,-500.0,0.00021917,2]
[356571591,1742695832432,-500.0,0.00021917,2]
[356571592,1742695832442,-1035.46,0.00021917,2]
[356571593,1742695832451,-1134.54,0.00021917,2]
[356571594,1742695832460,-2299.64,0.00021917,2]
[356571595,1742695832470,-500.0,0.00021917,2]
[356571596,1742695832479,-8596.58,0.00021917,2]
[356571597,1742695832489,-500.0,0.00021917,2]
[356571598,1742695832498,-674.86,0.00021917,2]
[356571599,1742695832507,-1900.83,0.00021917,2]
[356571600,1742695832517,-5151.93,0.00021917,2]
[356571601,1742695832526,-840.71,0.00021917,2]
[356571602,1742695832535,-500.0,0.00021917,2]
[356571603,1742695832544,-500.0,0.00021917,2]
[356571604,1742695832553,-2146.48,0.00021917,2]
[356571605,1742695832562,-500.0,0.00021917,2]
[356571606,1742695832571,-500.0,0.00021917,2]
[356571607,1742695832580,-4862.88,0.00021917,2]
[356571608,1742695832591,-540.83,0.00021917,2]
[356571609,1742695832600,-500.0,0.00021917,2]
[356571610,1742695832611,-1008.38,0.00021917,2]
[356571611,1742695832621,-2756.32348494,0.00021917,2]
[356571612,1742695832644,-1427.72651506,0.00021917,2]
[356571613,1742695832655,-500.0,0.00021917,2]
[356571614,1742695832664,-873.67,0.00021917,2]
[356571615,1742695832673,-660.88,0.00021917,2]
[356571616,1742695832684,-769.13,0.00021917,2]
[356571617,1742695832693,-1943.5,0.00021917,2]
[356571618,1742695832703,-500.0,0.00022191,2]
[356571619,1742695832712,-500.0,0.00022191,2]
[356571620,1742695832721,-184.3524792,0.00022191,2]
[356571621,1742695832730,-500.0,0.00022191,2]
[356571622,1742695832739,-500.0,0.00022191,2]
[356571623,1742695832749,-518.36473337,0.00022191,2]
[356571624,1742695832758,-566.53,0.00022191,2]
[356571625,1742695832767,-500.0,0.00022191,2]
[356571626,1742695832776,-500.0,0.00022191,2]
[356571627,1742695832786,-1065.55,0.00022191,2]
[356571628,1742695832795,-9320.98,0.00022191,2]
[356571629,1742695832804,-500.0,0.00022191,2]
[356571630,1742695832813,-500.0,0.00022191,2]
[356571631,1742695832822,-500.0,0.00022191,2]
[356571632,1742695832831,-500.0,0.00022191,2]
[356571633,1742695832841,-502.26,0.00022191,2]
[356571634,1742695832850,-3632.42,0.00022191,2]
[356571635,1742695832859,-508.67,0.00022191,2]
[356571636,1742695832868,-500.0,0.00022191,2]
[356571637,1742695832877,-1289.17,0.00022191,2]
[356571638,1742695832887,-500.0,0.00022191,2]
[356571639,1742695832896,-646.76,0.00022191,2]
[356571640,1742695832906,-500.0,0.00022191,2]
[356571641,1742695832915,-874.56,0.00022191,2]
[356571642,1742695832925,-8296.87,0.00022191,2]
[356571643,1742695832934,-1013.88,0.00022191,2]
[356571644,1742695832944,-500.0,0.00022191,2]
[356571645,1742695832961,-1286.95,0.00022191,2]
[356571646,1742695832975,-10083.57,0.00022191,2]
[356571647,1742695832985,-500.0,0.00022191,2]
[356571648,1742695832994,-500.0,0.00022191,2]
[356571649,1742695833207,-527.06225432,0.00022191,2]
[356571650,1742695833218,-635.01,0.00022191,2]
[356571651,1742695833228,-929.22,0.00022191,2]
[356571652,1742695833239,-500.0,0.00022191,2]
[356571653,1742695833249,-503.60158314,0.00022191,2]
[356571654,1742695833259,-1046.83,0.00022191,2]
[356571655,1742695833268,-500.0,0.00022191,2]
[356571656,1742695833278,-1734.68,0.00022191,2]
[356571657,1742695833288,-745.11,0.00022191,2]
[356571658,1742695833298,-2523.05,0.00022191,2]
[356571659,1742695833307,-506.31126114,0.00022191,2]
[356571660,1742695833317,-547.58,0.00022191,2]
[356571661,1742695833328,-500.0,0.00022191,2]
[356571662,1742695833341,-1189.47,0.00022191,2]
[356571663,1742695833351,-906.19,0.00022191,2]
[356571664,1742695833361,-500.0,0.00022191,2]
[356571665,1742695833371,-500.0,0.00022191,2]
[356571666,1742695833381,-1164.76,0.00022191,2]
[356571667,1742695833391,-500.0,0.00022191,2]
[356571668,1742695833401,-2942.2,0.00022191,2]
[356571669,1742695833411,-815.33,0.00022191,2]
[356571670,1742695833420,-500.0,0.00022191,2]
[356571671,1742695833429,-3918.45,0.00022191,2]
[356571672,1742695833439,-1674.24,0.00022191,2]
[356571673,1742695833449,-500.0,0.00022191,2]
[356571674,1742695833459,-500.0,0.00022191,2]
[356571675,1742695833468,-500.0,0.00022191,2]
[356571676,1742695833479,-1039.532626,0.00022191,2]
[356571677,1742695833488,-1039.532626,0.00022191,2]
[356571678,1742695833498,-500.0,0.00022191,2]
[356571679,1742695833508,-2611.4,0.00022191,2]
[356571680,1742695833517,-500.0,0.00022191,2]
[356571681,1742695833527,-749.85,0.00022191,2]
[356571682,1742695833537,-500.0,0.00022191,2]
[356571683,1742695833547,-1039.532626,0.00022191,2]
[356571684,1742695833556,-1039.532626,0.00022191,2]
[356571685,1742695833566,-971.66,0.00022191,2]
[356571686,1742695833576,-1793.83,0.00022191,2]
[356571687,1742695833586,-6549.11,0.00022191,2]
[356571688,1742695833595,-4950.72,0.00022191,2]
[356571689,1742695833604,-599.09,0.00022191,2]
[356571690,1742695833616,-500.0,0.00022191,2]
[356571691,1742695833626,-712.87,0.00022191,2]
[356571692,1742695833638,-1144.12,0.00022191,2]
[356571693,1742695833649,-1741.15,0.00022191,2]
[356571694,1742695833659,-2462.66,0.00022191,2]
[356571695,1742695833669,-515.08,0.00022191,2]
[356571696,1742695833680,-551.12,0.00022191,2]
[356571697,1742695833690,-12423.82,0.00022191,2]
[356571698,1742695833701,-706.23,0.00022191,2]
[356571699,1742695833711,-659.1,0.00022191,2]
[356571700,1742695833722,-18196.18,0.00022191,2]
[356571701,1742695833731,-810.26,0.00022191,2]
[356571702,1742695833741,-774.62,0.00022191,2]
[356571703,1742695833750,-3040.93,0.00022191,2]
[356571704,1742695833760,-500.0,0.00022191,2]
[356571705,1742695833769,-500.0,0.00022191,2]
[356571706,1742695833779,-10084.47,0.00022191,2]
[356571707,1742695833789,-981.3,0.00022191,2]
[356571708,1742695833799,-500.0,0.00022191,2]
[356571709,1742695833808,-500.0,0.00022191,2]
[356571710,1742695833817,-500.0,0.00022191,2]
[356571711,1742695833827,-969.92,0.00022191,2]
[356571712,1742695833837,-500.0,0.00022191,2]
[356571713,1742695833847,-500.0,0.00022191,2]
[356571714,1742695833857,-500.0,0.00022191,2]
[356571715,1742695833866,-1683.66,0.00022191,2]
[356571716,1742695833877,-4465.37,0.00022191,2]
[356571717,1742695833886,-1146.57,0.00022191,2]
[356571718,1742695833896,-500.0,0.00022191,2]
[356571719,1742695833906,-500.0,0.00022191,2]
[356571720,1742695833916,-500.0,0.00022191,2]
[356571721,1742695833925,-500.0,0.00022191,2]
[356571722,1742695833935,-500.0,0.00022191,2]
[356571723,1742695833944,-6328.58,0.00022191,2]
[356571724,1742695833955,-574.04482499,0.00022191,2]
[356571725,1742695833965,-500.0,0.00022191,2]
[356571726,1742695833976,-26829.49,0.00022191,2]
[356571727,1742695833986,-989.34,0.00022191,2]
[356571728,1742695833996,-500.0,0.00022191,2]
[356571729,1742695834008,-500.0,0.00022191,2]
[356571730,1742695834018,-841.57,0.00022191,2]
[356571731,1742695834028,-30722.86,0.00022191,2]
[356571732,1742695834038,-500.0,0.00022191,2]
[356571733,1742695834048,-500.0,0.00022191,2]
[356571734,1742695834058,-127088.11248054,0.00022191,2]
[356571735,1742695834073,-8736.25751946,0.00022191,2]
[356571736,1742695834083,-908.78,0.00022191,2]
[356571737,1742695834093,-500.0,0.00022191,2]
[356571738,1742695834103,-554.89,0.00022191,2]
[356571739,1742695834113,-3650.43,0.00022191,2]
[356571740,1742695834122,-957.88,0.00022191,2]
[356571741,1742695834132,-9026.18,0.00022191,2]
[356571742,1742695834141,-500.0,0.00022191,2]
[356571743,1742695834151,-500.0,0.00022191,2]
[356571744,1742695834161,-650.01,0.00022191,2]
[356571745,1742695834171,-980.77,0.00022191,2]
[356571746,1742695834180,-500.0,0.00022191,2]
[356571747,1742695834190,-500.0,0.00022191,2]
[356571748,1742695834200,-500.0,0.00022191,2]
[356571749,1742695834210,-1035.46,0.00022191,2]
[356571750,1742695834220,-1134.54,0.00022191,2]
[356571751,1742695834230,-2299.64,0.00022191,2]
[356571752,1742695834239,-500.0,0.00022191,2]
[356571753,1742695834249,-8596.58,0.00022191,2]
[356571754,1742695834260,-500.0,0.00022191,2]
[356571755,1742695834270,-674.86,0.00022191,2]
[356571756,1742695834279,-1900.83,0.00022191,2]
[356571757,1742695834289,-840.71,0.00022191,2]
[356571758,1742695834298,-5151.93,0.00022191,2]
[356571759,1742695834308,-500.0,0.00022191,2]
[356571760,1742695834317,-500.0,0.00022191,2]
[356571761,1742695834327,-2146.48,0.00022191,2]
[356571762,1742695834337,-500.0,0.00022191,2]
[356571763,1742695834346,-500.0,0.00022191,2]
[356571764,1742695834355,-4862.88,0.00022191,2]
[356571765,1742695834365,-540.83,0.00022191,2]
[356571766,1742695834375,-500.0,0.00022191,2]
[356571767,1742695834384,-1008.38,0.00022191,2]
[356571768,1742695834394,-4184.05,0.00022191,2]
[356571769,1742695834404,-500.0,0.00022191,2]
[356571770,1742695834414,-873.67,0.00022191,2]
[356571771,1742695834424,-660.88,0.00022191,2]
[356571772,1742695834433,-769.13,0.00022191,2]
[356571773,1742695834443,-1943.5,0.00022191,2]
[356571774,1742695834452,-84689.02446369,0.0002224,2]
[356571775,1742695834464,-12782.64554888,0.0002224,2]
[356571776,1742695834474,-152.0,0.00022293,2]
[356571777,1742695834483,-500.0,0.00022315,2]
[356571778,1742695834493,-500.0,0.00022343,2]
[356571779,1742695834502,-501.73162151,0.00022379,2]
[356571780,1742695834511,-500.0,0.00022396,2]
[356571781,1742695834521,-500.0,0.00022396,2]
[356571782,1742695834531,-500.0,0.00022396,2]
[356571783,1742695834540,-601.95526435,0.00022396,2]
[356571784,1742695834549,-500.0,0.00022396,2]
[356571785,1742695834558,-500.0,0.00022465,2]
[356571786,1742695834567,-500.0,0.00022465,2]
[356571787,1742695834577,-500.0,0.00022465,2]
[356571788,1742695834586,-758.39,0.00022465,2]
[356571789,1742695834595,-500.0,0.00022465,2]
[356571790,1742695834604,-500.0,0.00022465,2]
[356571791,1742695834616,-582.01,0.00022465,2]
[356571792,1742695834627,-500.0,0.00022465,2]
[356571793,1742695834636,-500.0,0.00022465,2]
[356571794,1742695834646,-500.0,0.00022465,2]
[356571795,1742695834656,-500.0,0.00022465,2]
[356571796,1742695834666,-500.0,0.00022465,2]
[356571797,1742695834675,-500.0,0.00022465,2]
[356571798,1742695834684,-699.65,0.00022465,2]
[356571799,1742695834694,-500.0,0.00022465,2]
[356571800,1742695834703,-500.0,0.00022465,2]
[356571801,1742695834712,-500.0,0.00022465,2]
[356571802,1742695834722,-500.0,0.00022465,2]
[356571803,1742695834731,-500.0,0.00022465,2]
[356571804,1742695834741,-982.01,0.00022465,2]
[356571805,1742695834750,-500.0,0.00022465,2]
[356571806,1742695834759,-500.0,0.00022465,2]
[356571807,1742695834769,-500.0,0.00022465,2]
[356571808,1742695834779,-500.0,0.00022465,2]
[356571809,1742695834788,-417.31732707,0.00022465,2]
[356571810,1742695834797,-500.0,0.00022465,2]
[356571811,1742695834807,-500.0,0.00022465,2]
[356571812,1742695834816,-500.0,0.00022465,2]
[356571813,1742695834826,-618.54,0.00022465,2]
[356571814,1742695834835,-500.0,0.00022465,2]
[356571815,1742695834845,-500.0,0.00022465,2]
[356571816,1742695834854,-783.95,0.00022465,2]
[356571817,1742695834864,-771.22,0.00022465,2]
[356571818,1742695834873,-200.0,0.00022465,2]
[356571819,1742695834883,-777.65,0.00022465,2]
[356571820,1742695834892,-500.0,0.00022465,2]
[356571821,1742695834902,-1698.19,0.00022465,2]
[356571822,1742695834911,-500.0,0.00022465,2]
[356571823,1742695834920,-500.0,0.00022465,2]
[356571824,1742695834930,-713.31,0.00022465,2]
[356571825,1742695834939,-761.18,0.00022465,2]
[356571826,1742695834949,-500.0,0.00022465,2]
[356571827,1742695834958,-500.0,0.00022465,2]
[356571828,1742695834968,-500.0,0.00022465,2]
[356571829,1742695834977,-1005.65,0.00022465,2]
[356571830,1742695834987,-500.0,0.00022465,2]
[356571831,1742695834996,-500.0,0.00022465,2]
[356571832,1742695835006,-1069.14,0.00022465,2]
[356571833,1742695835016,-533.06,0.00022465,2]
[356571834,1742695835025,-783.83,0.00022465,2]
[356571835,1742695835035,-779.96,0.00022465,2]
[356571836,1742695835044,-760.56,0.00022465,2]
[356571837,1742695835054,-891.36,0.00022465,2]
[356571838,1742695835063,-1907.39,0.00022465,2]
[356571839,1742695835073,-777.47,0.00022465,2]
[356571840,1742695835083,-500.0,0.00022465,2]
[356571841,1742695835092,-592.96,0.00022465,2]
[356571842,1742695835101,-500.0,0.00022465,2]
[356571843,1742695835111,-643.62,0.00022465,2]
[356571844,1742695835120,-500.0,0.00022465,2]
[356571845,1742695835130,-500.0,0.00022465,2]
[356571846,1742695835139,-507.04,0.00022465,2]
[356571847,1742695835149,-500.0,0.00022465,2]
[356571848,1742695835159,-500.0,0.00022465,2]
[356571849,1742695835168,-500.0,0.00022465,2]
[356571850,1742695835179,-500.0,0.00022465,2]
[356571851,1742695835188,-500.0,0.00022465,2]
[356571852,1742695835198,-500.0,0.00022465,2]
[356571853,1742695835207,-559.64763847,0.00022465,2]
[356571854,1742695836180,-346.52236153,0.00022465,2]
[356571855,1742695836190,-1016.16,0.00022465,2]
[356571856,1742695836200,-500.0,0.00022465,2]
[356571857,1742695836209,-1030.46,0.00022465,2]
[356571858,1742695836219,-151.0,0.00022465,7]
[356571859,1742695836229,-207.266954,0.00022465,7]
[356571860,1742695836239,-605.04,0.00022465,2]
[356571861,1742695836248,-500.0,0.00022465,2]
[356571862,1742695836257,-594.84,0.00022465,2]
[356571863,1742695836266,-607.01,0.00022465,2]
[356571864,1742695836276,-500.0,0.00022465,2]
[356571865,1742695836285,-500.0,0.00022465,2]
[356571866,1742695836295,-500.0,0.00022465,2]
[356571867,1742695836304,-500.0,0.00022465,2]
[356571868,1742695836313,-566.53,0.00022465,2]
[356571869,1742695836322,-500.0,0.00022465,2]
[356571870,1742695836331,-500.0,0.00022465,2]
[356571871,1742695836341,-910.18559047,0.00022465,2]
[356571906,1742695842461,-500.0,0.00021917,2]
[356571907,1742695842471,-4621.63,0.00021917,2]
[356571908,1742695842480,-4621.63,0.00022191,2]
[356571909,1742695842490,-155.36440953,0.00022465,2]
[356571910,1742695842499,-500.0,0.00022465,2]
[356571911,1742695842508,-500.0,0.00022465,2]
[356571912,1742695842517,-210.30937666,0.00022465,2]
[356571913,1742695842525,-500.0,0.00022465,2]
[356571914,1742695842534,-502.26,0.00022465,2]
[356571915,1742695842543,-3632.42,0.00022465,2]
[356571916,1742695842552,-508.67,0.00022465,2]
[356571917,1742695842562,-500.0,0.00022465,2]
[356571918,1742695842571,-1289.17,0.00022465,2]
[356571919,1742695842580,-500.0,0.00022465,2]
[356571920,1742695842589,-646.76,0.00022465,2]
[356571921,1742695842598,-500.0,0.00022465,2]
[356571922,1742695842607,-874.56,0.00022465,2]
[356571923,1742695842619,-8296.87,0.00022465,2]
[356571924,1742695842629,-1013.88,0.00022465,2]
[356571925,1742695842638,-500.0,0.00022465,2]
[356571926,1742695842648,-1286.95,0.00022465,2]
[356571927,1742695842659,-500.0,0.00022465,2]
[356571928,1742695842669,-500.0,0.00022465,2]
[356571929,1742695842678,-635.01,0.00022465,2]
[356571930,1742695842689,-929.22,0.00022465,2]
[356571931,1742695842698,-931.99750549,0.00022465,2]
[356571943,1742695842953,-114.83249451,0.00022465,2]
[356571944,1742695842963,-500.0,0.00022465,2]
[356571945,1742695842973,-1734.68,0.00022465,2]
[356571946,1742695842983,-745.11,0.00022465,2]
[356571947,1742695842993,-2523.05,0.00022465,2]
[356571948,1742695843002,-547.58,0.00022465,2]
[356571949,1742695843012,-500.0,0.00022465,2]
[356571950,1742695843022,-1189.47,0.00022465,2]
[356571951,1742695843032,-906.19,0.00022465,2]
[356571952,1742695843042,-500.0,0.00022465,2]
[356571953,1742695843051,-1164.76,0.00022465,2]
[356571954,1742695843061,-2942.2,0.00022465,2]
[356571955,1742695843071,-815.33,0.00022465,2]
[356571956,1742695843081,-500.0,0.00022465,2]
[356571957,1742695843090,-3918.45,0.00022465,2]
[356571958,1742695843099,-1674.24,0.00022465,2]
[356571959,1742695843109,-500.0,0.00022465,2]
[356571960,1742695843119,-500.0,0.00022465,2]
[356571961,1742695843129,-1039.532626,0.00022465,2]
[356571962,1742695843139,-1039.532626,0.00022465,2]
[356571963,1742695843150,-500.0,0.00022465,2]
[356571964,1742695843160,-2611.4,0.00022465,2]
[356571965,1742695843170,-500.0,0.00022465,2]
[356571966,1742695843180,-749.85,0.00022465,2]
[356571967,1742695843190,-500.0,0.00022465,2]
[356571968,1742695843200,-1039.532626,0.00022465,2]
[356571969,1742695843209,-1039.532626,0.00022465,2]
[356571970,1742695843219,-971.66,0.00022465,2]
[356571971,1742695843229,-1793.83,0.00022465,2]
[356571972,1742695843238,-6549.11,0.00022465,2]
[356571973,1742695843248,-4950.72,0.00022465,2]
[356571974,1742695843258,-599.09,0.00022465,2]
[356571975,1742695843268,-500.0,0.00022465,2]
[356571976,1742695843278,-712.87,0.00022465,2]
[356571977,1742695843287,-1144.12,0.00022465,2]
[356571978,1742695843297,-1741.15,0.00022465,2]
[356571979,1742695843306,-2462.66,0.00022465,2]
[356571980,1742695843316,-515.08,0.00022465,2]
[356571981,1742695843325,-551.12,0.00022465,2]
[356571982,1742695843335,-12423.82,0.00022465,2]
[356571983,1742695843345,-706.23,0.00022465,2]
[356571984,1742695843355,-659.1,0.00022465,2]
[356571985,1742695843365,-18196.18,0.00022465,2]
[356571986,1742695843374,-810.26,0.00022465,2]
[356571987,1742695843386,-774.62,0.00022465,2]
[356571988,1742695843395,-3040.93,0.00022465,2]
[356571989,1742695843405,-500.0,0.00022465,2]
[356571990,1742695843415,-500.0,0.00022465,2]
[356571991,1742695843424,-10084.47,0.00022465,2]
[356571992,1742695843434,-981.3,0.00022465,2]
[356571993,1742695843444,-500.0,0.00022465,2]
[356571994,1742695843454,-464.94914802,0.00022465,2]
[356571995,1742695843464,-500.0,0.00022465,2]
[356571996,1742695843473,-969.92,0.00022465,2]
[356571997,1742695843483,-500.0,0.00022465,2]
[356571998,1742695843493,-500.0,0.00022465,2]
[356571999,1742695843502,-1683.66,0.00022465,2]
[356572000,1742695843512,-4465.37,0.00022465,2]
[356572001,1742695843522,-1146.57,0.00022465,2]
[356572002,1742695843531,-500.0,0.00022465,2]
[356572003,1742695843541,-500.0,0.00022465,2]
[356572004,1742695843551,-500.0,0.00022465,2]
[356572005,1742695843560,-500.0,0.00022465,2]
[356572006,1742695843570,-500.0,0.00022465,2]
[356572007,1742695843580,-6328.58,0.00022465,2]
[356572008,1742695843589,-433.05387869,0.00022465,2]
[356572009,1742695843599,-26829.49,0.00022465,2]
[356572010,1742695843609,-989.34,0.00022465,2]
[356572011,1742695843623,-500.0,0.00022465,2]
[356572012,1742695843633,-500.0,0.00022465,2]
[356572013,1742695843643,-841.57,0.00022465,2]
[356572014,1742695843652,-30722.86,0.00022465,2]
[356572015,1742695843665,-500.0,0.00022465,2]
[356572016,1742695843675,-500.0,0.00022465,2]
[356572017,1742695843684,-90791.53831266,0.00022465,2]
[356572018,1742695843700,-45032.83168734,0.00022465,2]
[356572019,1742695843710,-908.78,0.00022465,2]
[356572020,1742695843721,-500.0,0.00022465,2]
[356572021,1742695843731,-554.89,0.00022465,2]
[356572022,1742695843741,-3650.43,0.00022465,2]
[356572023,1742695843751,-957.88,0.00022465,2]
[356572024,1742695843760,-9026.18,0.00022465,2]
[356572025,1742695843770,-500.0,0.00022465,2]
[356572026,1742695843780,-500.0,0.00022465,2]
[356572027,1742695843790,-650.01,0.00022465,2]
[356572028,1742695843800,-980.77,0.00022465,2]
[356572029,1742695843810,-500.0,0.00022465,2]
[356572030,1742695843820,-500.0,0.00022465,2]
[356572031,1742695843830,-500.0,0.00022465,2]
[356572032,1742695843839,-1035.46,0.00022465,2]
[356572033,1742695843849,-1134.54,0.00022465,2]
[356572034,1742695843858,-2299.64,0.00022465,2]
[356572035,1742695843868,-500.0,0.00022465,2]
[356572036,1742695843892,-8596.58,0.00022465,2]
[356572037,1742695843901,-500.0,0.00022465,2]
[356572038,1742695843911,-674.86,0.00022465,2]
[356572039,1742695843921,-1900.83,0.00022465,2]
[356572040,1742695843931,-840.71,0.00022465,2]
[356572041,1742695843942,-5151.93,0.00022465,2]
[356572042,1742695843952,-500.0,0.00022465,2]
[356572043,1742695843963,-2146.48,0.00022465,2]
[356572044,1742695843974,-500.0,0.00022465,2]
[356572045,1742695843985,-500.0,0.00022465,2]
[356572046,1742695843996,-4862.88,0.00022465,2]
[356572047,1742695844007,-540.83,0.00022465,2]
[356572048,1742695844017,-500.0,0.00022465,2]
[356572049,1742695844028,-1008.38,0.00022465,2]
[356572050,1742695844038,-4184.05,0.00022465,2]
[356572051,1742695844049,-500.0,0.00022465,2]
[356572052,1742695844060,-873.67,0.00022465,2]
[356572053,1742695844069,-660.88,0.00022465,2]
[356572054,1742695844079,-769.13,0.00022465,2]
[356572055,1742695844089,-1943.5,0.00022465,2]
[356572056,1742695844099,-1337.58967695,0.00022465,2]
[356572057,1742695844439,-0.00428683,0.00021917,2]
[356572058,1742695844781,-154.5175,0.00021917,2]
[356572069,1742695939746,500.0,0.00014,30]
[356572070,1742695951576,500.0,0.00014,30]
[356572071,1742695963039,500.0,0.00014,30]
[356572074,1742695981695,500.0,0.00014,30]
[356572075,1742695992601,500.0,0.00014,30]
[356572076,1742696004617,500.0,0.00014,30]
[356572077,1742696017928,500.0,0.00014,30]
[356572078,1742696027753,500.0,0.00014,30]
[356572079,1742696036717,500.0,0.00014,30]
[356572082,1742696051000,500.0,0.0001522,120]
[356572086,1742696228655,466.82568118,0.0001522,120]
[356572093,1742696334766,-255.9726,0.00020465,2]
[356572094,1742696338238,-176.22338134,0.0001975,2]
[356572095,1742696343986,-152.67,0.00019749,2]
[356572096,1742696394740,-203.3606391,0.00019585,2]
[356572097,1742696402051,-155.84220323,0.00019585,2]
[356572099,1742696416849,-216.27639552,0.00017649,2]
[356572100,1742696432575,-178.9976,0.00017649,2]
[356572101,1742696435915,-150.0,0.00017473,2]
[356572108,1742696554018,-150.0,0.00017473,2]
[356572109,1742696554612,-150.0,0.00017473,2]
[356572111,1742696578869,-150.0,0.00019637,3]
[356572115,1742696661974,168.510265,0.00010959,2]
[356572120,1742696753275,-168.510265,0.00015068,2]
[356572121,1742696753295,-2111.33099221,0.00017298,2]
[356572122,1742696755102,-1657.45799113,0.00017298,2]
[356572123,1742696763719,155.8,0.00010959,2]
[356572126,1742696794500,-178.9976,0.00017298,2]
[356572127,1742696805030,-157.1510105,0.00017649,2]
[356572128,1742696806657,-152.67,0.00017125,2]
[356572129,1742696842192,-212.54452602,0.00017125,2]
[356572131,1742696845991,-150.0,0.00017125,2]
[356572132,1742696846075,-492.97680639,0.00017125,2]
[356572133,1742696846098,-51.51886286,0.00017649,2]
[356572134,1742696846119,-300.0,0.00018419,2]
[356572135,1742696846141,-500.0,0.0001842,2]
[356572136,1742696846163,-419.95975554,0.0001842,2]
[356572137,1742696846185,-343.63649691,0.0001842,2]
[356572140,1742696880619,-181.5599978,0.00017983,2]
[356572144,1742696961175,-68.4400022,0.00017983,2]
[356572145,1742696961195,-400.55102176,0.0001832,2]
[356572146,1742696961215,-3297.19209444,0.0001832,2]
[356572147,1742696961235,-300.0,0.00018418,2]
[356572148,1742696961254,-1130.02803948,0.00018419,2]
[356572149,1742696961274,-500.0,0.00018419,2]
[356572150,1742696961294,-217.6144497,0.00018419,2]
[356572151,1742696961315,-500.0,0.00018419,2]
[356572152,1742696961335,-168.75076024,0.00018419,2]
[356572153,1742696961356,-500.0,0.00018419,2]
[356572154,1742696961376,-500.0,0.00018419,2]
[356572155,1742696961396,-500.0,0.00018419,2]
[356572156,1742696961416,-500.0,0.00018419,2]
[356572157,1742696961435,-338.80718575,0.00018419,2]
[356572158,1742696961456,-500.0,0.00018419,2]
[356572159,1742696961476,-500.0,0.00018419,2]
[356572160,1742696961496,-500.0,0.00018419,2]
[356572161,1742696961517,-500.0,0.00018419,2]
[356572162,1742696961537,-250.0,0.00018419,2]
[356572163,1742696961558,-500.0,0.00018419,2]